bitfinex-derivatives/quotes_ETHF0:USTF0_20250620
["timestamp","ask_amount","ask_price","bid_price","bid_amount"]
[1750448979544,2.05325168,2414.7,2414.6,0.82819]
[1750448980052,0.82823,2414.6,2414.5,0.82823]
[1750448980540,0.82823,2414.6,2414.4,3.2078]
[1750448980541,0.82826,2414.5,2414.4,3.2078]
[1750448980736,1.52376,2414.5,2414.4,3.2078]
[1750448981348,2.07074,2414.4,2414.1,1.414]
[1750448981541,0.82847,2414.0,2413.9,0.82843]
[1750448981737,10.5943072,2414.2,2413.8,0.82846]
[1750448981738,0.82849,2413.9,2413.8,0.82846]
[1750448982047,2.07101,2414.1,2413.7,0.82851]
[1750448982048,0.82853,2413.8,2413.7,0.82851]
[1750448983448,0.82857,2413.6,2413.5,4.03636]
[1750448983648,6.6905872,2414.1,2413.6,0.82853]
[1750448983649,0.82855,2413.7,2413.6,0.82853]
[1750448983846,1.2954,2414.0,2413.7,0.82851]
[1750448984042,3.2078,2414.2,2413.8,7.3868372]
[1750448984240,0.82835,2414.3,2414.2,0.82836]
[1750448984444,0.82835,2414.3,2414.2,6.1439472]
[1750448984946,0.82836,2414.2,2414.1,2.12707]
[1750448985141,0.82836,2414.2,2414.1,0.82837]
[1750448985554,0.8284,2414.1,2414.0,1.53111]
[1750448985744,0.8284,2414.1,2414.0,0.82841]
[1750448985944,0.82843,2414.0,2413.9,1.47804]
[1750448986147,0.82842,2414.1,2414.0,0.82838]
[1750448986339,7.28489,2414.5,2414.0,1.3006]
[1750448986542,0.8284,2414.2,2414.1,0.82837]
[1750448986748,0.8285,2413.9,2413.8,0.82847]
[1750448987049,0.82853,2413.8,2413.7,0.82849]
[1750448987753,0.82853,2413.8,2413.7,0.82853]
[1750448987944,0.8285,2413.9,2413.8,0.82846]
[1750448988348,0.82844,2414.1,2414.0,0.8284]
[1750448989650,0.82847,2414.0,2413.9,0.82845]
[1750448989846,0.82847,2413.9,2413.8,6.15468]
[1750448990655,0.82847,2413.9,2413.8,4.03628]
[1750448990955,0.82847,2413.9,2413.8,3.2078]
[1750448991955,0.82847,2413.9,2413.8,4.0363]
[1750448992562,0.82847,2413.9,2413.8,3.2078]
[1750448993858,0.8285,2413.8,2413.7,0.82851]
[1750448994456,2.07114,2414.0,2413.6,0.657]
[1750448994457,0.82853,2413.7,2413.6,0.657]
[1750448994659,0.82853,2413.7,2413.6,1.48557]
[1750448994848,0.06933781,2414.1,2413.6,5.2077]
[1750448995048,0.89776781,2414.1,2414.0,0.82843]
[1750448995359,0.06933781,2414.1,2413.8,0.82849]
[1750448995555,0.82847,2413.9,2413.8,0.82849]
[1750448996352,0.82853,2413.7,2413.6,1.48555]
[1750448996558,0.82853,2413.7,2413.6,4.69335]
[1750448996768,0.82853,2413.7,2413.6,1.48555]
[1750448996954,0.82853,2413.7,2413.6,2.79535]
[1750448997351,0.82853,2413.7,2413.6,1.3098]
[1750448997657,0.82853,2413.7,2413.3,3.2078]
[1750448997658,0.82864,2413.4,2413.3,6.03556]
[1750448997856,0.82864,2413.4,2413.3,2.82776]
[1750448998451,0.82864,2413.4,2413.3,6.03556]
[1750448998651,0.82864,2413.4,2413.3,3.2078]
[1750448998848,0.82871,2413.2,2413.1,0.6871]
[1750448999048,0.82874,2413.1,2412.7,3.2078]
[1750448999359,0.82875,2413.1,2413.0,4.03654]
[1750449000259,12.28153463,2413.8,2412.8,2.7235]
[1750449000260,2.46877779,2414.0,2412.9,3.2078]
[1750449000450,2.46877779,2413.6,2412.7,3.2078]
[1750449000650,2.46877779,2413.6,2412.6,6.929]
[1750449000651,1.22296093,2413.5,2413.1,3.2078]
[1750449000853,1.3335,2413.8,2413.1,3.2078]
[1750449001061,0.06933781,2414.1,2413.7,3.2078]
[1750449001263,1.22252162,2414.0,2413.9,0.82847]
[1750449001464,1.22252162,2414.0,2413.7,3.2078]
[1750449001465,0.06933781,2414.1,2414.0,0.82843]
[1750449001762,0.06933781,2414.1,2414.0,4.03623]
[1750449001763,0.89773781,2414.1,2414.0,4.03623]
[1750449001953,0.06933781,2414.1,2414.0,20.64375463]
[1750449002664,0.06933781,2414.1,2414.0,10.43353]
[1750449002862,0.06933781,2414.1,2414.0,27.57275463]
[1750449003061,0.89773781,2414.1,2414.0,1.3973]
[1750449003269,5.34816781,2414.1,2413.6,0.82855]
[1750449003562,0.89773781,2414.1,2413.7,10.21022463]
[1750449003759,0.06933781,2414.1,2414.0,0.82843]
[1750449003960,0.06933781,2414.1,2414.0,1.48403]
[1750449004161,0.89773781,2414.1,2414.0,2.6644]
[1750449004567,0.06933781,2414.1,2414.0,3.49283]
[1750449005064,0.06933781,2414.1,2414.0,13.70305463]
[1750449005261,0.06933781,2414.1,2414.0,18.70305463]
[1750449006454,0.06933781,2414.1,2414.0,13.70305463]
[1750449006766,0.06933781,2414.1,2414.0,10.42083]
[1750449007153,0.06933781,2414.1,2414.0,3.49283]
[1750449007359,0.06933781,2414.1,2413.9,3.2078]
[1750449007571,0.06933781,2414.1,2413.8,0.82847]
[1750449007765,0.82843,2414.0,2413.9,1.3258]
[1750449009059,0.06933781,2414.1,2413.9,1.3258]
[1750449009467,0.82843,2414.0,2413.9,2.15427]
[1750449009758,0.06933781,2414.1,2413.9,1.3258]
[1750449009962,0.06933781,2414.1,2414.0,0.82843]
[1750449010158,0.06933781,2414.1,2414.0,21.17545463]
[1750449010357,0.06933781,2414.1,2414.0,21.87645463]
[1750449011162,0.89773781,2414.1,2414.0,21.87645463]
[1750449011371,0.89773781,2414.1,2414.0,0.701]
[1750449011566,0.82843,2414.0,2413.9,2.15427]
[1750449011771,0.82843,2414.0,2413.9,1.3258]
[1750449012162,0.82843,2414.0,2413.9,2.15427]
[1750449012471,0.82843,2414.0,2413.9,1.3258]
[1750449012666,0.89776781,2414.1,2413.9,1.3258]
[1750449012865,0.89776781,2414.1,2414.0,0.82843]
[1750449013161,0.8285,2413.8,2413.7,5.38001]
[1750449013364,0.8285,2413.8,2413.7,13.72811]
[1750449014071,0.82847,2414.0,2413.9,0.82845]
[1750449014566,0.06933781,2414.1,2414.0,0.82843]
[1750449015666,0.89773781,2414.1,2414.0,7.75743]
[1750449015869,0.82843,2414.0,2413.9,2.24753]
[1750449016172,0.82843,2414.0,2413.9,7.75743]
[1750449016669,0.82843,2414.0,2413.9,0.82843]
[1750449016872,0.6693,2414.0,2413.9,0.82843]
[1750449018373,1.49773,2414.0,2413.9,0.82843]
[1750449018776,0.6693,2414.0,2413.9,0.82843]
[1750449019074,1.49773,2414.0,2413.9,0.82843]
[1750449019279,0.6693,2414.0,2413.9,0.82843]
[1750449019777,1.49773,2414.0,2413.9,0.82843]
[1750449020378,0.6693,2414.0,2413.9,0.82843]
[1750449020677,0.73863781,2414.0,2413.9,0.82843]
[1750449020979,0.06933781,2414.0,2413.9,0.82843]
[1750449021780,0.06933781,2414.0,2413.9,32.34143]
[1750449021964,7.81e-06,2414.0,2413.9,32.34143]
[1750449022581,7.81e-06,2414.0,2413.9,33.67063]
[1750449023288,0.6975,2415.0,2414.9,0.82812]
[1750449023577,0.6975,2415.0,2413.9,36.98445]
[1750449023578,0.82818,2414.8,2414.7,0.82817]
[1750449023780,1.92302816,2415.0,2414.2,10.1368]
[1750449023781,2.07031,2414.9,2414.2,10.1368]
[1750449023979,2.0704,2414.8,2414.2,12.2077]
[1750449024174,0.82828,2414.5,2414.4,0.82825]
[1750449025082,1.3697,2414.9,2414.2,12.1172]
[1750449025083,0.82832,2414.4,2414.3,0.8283]
[1750449025278,3.2078,2414.7,2414.2,3.2078]
[1750449025478,0.82833,2414.3,2414.2,3.2078]
[1750449025676,0.82847,2413.9,2413.8,4.03626]
[1750449025888,0.82845,2414.0,2413.9,0.82844]
[1750449026177,0.82847,2413.9,2413.7,2.0059]
[1750449026371,0.82847,2413.9,2413.8,0.8285]
[1750449026578,0.82853,2413.8,2413.7,0.82851]
[1750449026977,0.82849,2413.9,2413.8,0.82847]
[1750449027284,0.89779781,2414.0,2413.9,0.82847]
[1750449027585,0.06933781,2414.0,2413.6,8.2329]
[1750449027884,0.82857,2413.6,2413.5,4.68729]
[1750449028078,0.82857,2413.6,2413.5,4.03639]
[1750449028287,0.82857,2413.6,2413.5,3.2078]
[1750449029577,1.3615,2413.8,2413.5,3.2078]
[1750449029578,0.82853,2413.7,2413.6,0.82855]
[1750449029781,0.82857,2413.6,2413.5,4.03638]
[1750449030186,1.3615,2413.8,2413.5,4.03638]
[1750449030187,0.82854,2413.8,2413.7,0.82852]
[1750449030489,0.6612,2413.9,2413.5,4.03638]
[1750449030490,0.82857,2413.6,2413.5,4.03638]
[1750449031182,0.82857,2413.6,2413.5,3.2078]
[1750449031684,1.22274651,2413.6,2413.1,3.2078]
[1750449031882,1.22274651,2413.6,2413.0,27.929]
[1750449031883,0.82874,2413.1,2413.0,27.929]
[1750449032085,0.82874,2413.1,2413.0,2.25074]
[1750449032586,0.82874,2413.1,2413.0,2.25076]
[1750449032788,0.82877,2413.0,2412.9,0.82879]
[1750449033183,0.82876,2413.1,2413.0,0.82874]
[1750449034286,0.82881,2413.0,2412.9,0.82879]
[1750449034587,0.82884,2412.9,2412.8,0.82881]
[1750449035776,0.06933781,2413.1,2413.0,0.82877]
[1750449036683,0.06933781,2413.1,2413.0,26.27679463]
[1750449036886,0.06933781,2413.1,2413.0,52.77679463]
[1750449037090,0.06933781,2413.1,2413.0,54.73459463]
[1750449038179,7.81e-06,2413.1,2413.0,54.73459463]
[1750449040193,7.81e-06,2413.1,2413.0,54.73159463]
[1750449040986,7.81e-06,2413.1,2413.0,49.72559463]
[1750449041287,7.81e-06,2413.1,2413.0,16.20459463]
[1750449041588,7.81e-06,2413.1,2413.0,49.72559463]
[1750449042286,7.81e-06,2413.1,2413.0,54.72559463]
[1750449042690,7.81e-06,2413.1,2413.0,21.20459463]
[1750449042994,7.81e-06,2413.1,2413.0,54.72659463]
[1750449043594,7.81e-06,2413.1,2413.0,5.99437]
[1750449043891,7.81e-06,2413.1,2413.0,16.20459463]
[1750449044092,7.81e-06,2413.1,2413.0,49.72559463]
[1750449046696,7.81e-06,2413.1,2413.0,49.72359463]
[1750449048992,7.81e-06,2413.1,2413.0,49.68759463]
[1750449049189,7.81e-06,2413.1,2413.0,54.68759463]
[1750449049889,2.17477,2413.9,2413.8,0.8285]
[1750449050090,2.17477,2413.9,2413.8,27.2785]
[1750449050284,2.17477,2413.9,2413.8,27.2835]
[1750449050493,2.17477,2413.9,2413.8,0.8285]
[1750449050794,2.17477,2413.9,2413.8,27.2795]
[1750449052093,1.3463,2413.9,2413.8,27.2795]
[1750449052396,2.17477,2413.9,2413.8,27.2795]
[1750449052692,0.82858,2413.7,2413.6,4.03634]
[1750449052886,0.82858,2413.7,2413.6,30.47734]
[1750449053093,0.82857,2413.6,2413.5,7.85857]
[1750449053290,0.82857,2413.6,2413.5,34.29557]
[1750449053487,0.82864,2413.5,2413.4,34.2956]
[1750449054099,0.82864,2413.5,2413.1,0.6815]
[1750449054100,0.82876,2413.2,2413.1,4.03652]
[1750449054285,0.82876,2413.2,2412.9,0.82877]
[1750449054286,0.8288,2413.0,2412.9,0.82877]
[1750449054593,0.82881,2412.9,2412.8,0.82882]
[1750449054793,0.82881,2412.9,2412.8,27.27582]
[1750449054996,0.82887,2412.8,2412.7,27.27785]
[1750449055195,0.6438,2412.8,2412.7,27.27785]
[1750449055891,1.47264,2412.8,2412.7,27.27785]
[1750449056100,1.47264,2412.8,2412.7,27.27385]
[1750449056595,0.82888,2412.7,2412.6,0.82889]
[1750449056797,0.82891,2412.7,2412.6,0.82888]
[1750449057093,1.47266,2412.8,2412.7,0.82888]
[1750449057498,0.82904,2412.3,2412.0,3.2078]
[1750449057693,0.82908,2412.1,2412.0,0.8291]
[1750449057898,0.82914,2412.0,2411.9,0.82913]
[1750449058197,2.1025,2412.2,2411.9,26.491]
[1750449058399,1.48391,2412.1,2412.0,0.8291]
[1750449058789,0.6548,2412.1,2411.7,3.2078]
[1750449059091,0.6548,2412.1,2411.8,26.485]
[1750449059299,0.82912,2412.0,2411.9,0.82912]
[1750449059703,2.8693,2412.1,2412.0,0.82912]
[1750449060108,0.82915,2411.9,2411.8,27.31416]
[1750449060303,0.82914,2412.0,2411.9,0.82913]
[1750449060504,0.82915,2411.9,2411.8,26.479]
[1750449060805,0.82914,2412.0,2411.9,0.82913]
[1750449061502,0.82919,2411.8,2411.7,10.2188]
[1750449061704,0.82919,2411.8,2411.7,36.7018]
[1750449061897,0.82919,2411.8,2411.7,3.2078]
[1750449062097,0.82917,2411.9,2411.8,0.82916]
[1750449062297,0.82914,2412.0,2411.9,0.82912]
[1750449062502,2.8693,2412.1,2412.0,0.82912]
[1750449062703,0.6548,2412.1,2412.0,4.03692]
[1750449062900,4.5383,2412.6,2412.5,0.82895]
[1750449063093,7.012,2412.9,2412.8,0.82881]
[1750449063094,3.2078,2412.9,2412.8,0.82881]
[1750449063300,1.3113,2413.0,2412.9,0.82881]
[1750449063301,2.14009,2413.0,2412.9,0.82881]
[1750449063503,1.3113,2413.0,2412.9,4.03661]
[1750449064106,2.14007,2413.0,2412.9,4.03661]
[1750449064301,1.3113,2413.0,2412.9,4.03661]
[1750449065098,1.3639,2413.4,2413.3,0.82867]
[1750449065302,60.80227,2413.8,2413.2,5.27956]
[1750449065303,1.357,2413.8,2413.2,5.27956]
[1750449065603,1.357,2413.8,2413.6,0.82855]
[1750449065604,0.82857,2413.7,2413.6,0.82855]
[1750449065915,0.82841,2414.1,2414.0,0.82842]
[1750449066209,3.2078,2414.2,2413.6,10.21022463]
[1750449066395,1.357,2414.1,2413.7,33.536]
[1750449066600,1.357,2414.1,2413.6,10.21022463]
[1750449066801,0.8285,2413.8,2413.7,0.82852]
[1750449066997,1.357,2414.1,2413.8,0.82848]
[1750449067202,2.18542,2414.1,2413.9,0.82844]
[1750449067503,3.2078,2414.2,2414.0,0.82843]
[1750449067912,0.8284,2414.1,2414.0,0.82843]
[1750449068211,0.82847,2413.9,2413.8,4.03629]
[1750449068411,0.82847,2413.9,2413.8,3.2078]
[1750449068804,0.82847,2413.9,2413.8,4.0363]
[1750449069006,4.5363,2414.2,2413.9,0.82844]
[1750449069314,0.82843,2414.0,2413.9,0.82844]
[1750449069512,0.82847,2413.9,2413.8,3.2078]
[1750449070413,0.82847,2413.9,2413.8,4.0363]
[1750449070611,0.82847,2413.9,2413.8,3.2078]
[1750449072011,2.07118,2413.9,2413.5,0.82858]
[1750449072320,2.071,2414.1,2413.6,0.82855]
[1750449072321,0.82856,2413.7,2413.6,0.82855]
[1750449072506,0.82857,2413.6,2413.5,34.31156]
[1750449072708,0.82856,2413.7,2413.6,0.82854]
[1750449072909,0.82855,2413.7,2413.6,0.82854]
[1750449073109,0.82851,2413.9,2413.8,0.82848]
[1750449073312,0.82852,2413.8,2413.7,0.82851]
[1750449074415,2.071,2414.1,2413.4,3.2078]
[1750449074719,0.82859,2413.6,2413.5,0.82857]
[1750449074915,0.82864,2413.4,2413.3,0.82866]
[1750449075126,0.8287,2413.3,2413.2,0.82868]
[1750449075315,0.82864,2413.5,2413.4,0.8286]
[1750449075526,0.657,2413.7,2413.3,2.07165]
[1750449075715,0.82863,2413.5,2413.4,0.8286]
[1750449076113,0.8286,2413.6,2413.5,0.82857]
[1750449078311,0.82863,2413.5,2413.4,0.82859]
[1750449079027,0.82859,2413.6,2413.5,0.82857]
[1750449080124,0.82854,2413.7,2413.6,0.82857]
[1750449080316,2.07109,2414.0,2413.6,1.3115]
[1750449080516,2.07109,2414.0,2413.7,0.82851]
[1750449080517,0.82853,2413.8,2413.7,0.82851]
[1750449080721,2.07109,2414.0,2413.6,1.3115]
[1750449080722,0.82853,2413.7,2413.6,2.14004]
[1750449080925,0.82857,2413.6,2413.5,30.44338]
[1750449081327,0.82857,2413.6,2413.5,31.75488]
[1750449082224,0.82857,2413.6,2413.5,5.34788]
[1750449082420,0.82856,2413.7,2413.6,0.82852]
[1750449082628,0.82856,2413.7,2413.6,2.14002]
[1750449082926,0.82857,2413.6,2413.5,1.49898]
[1750449083221,0.82857,2413.6,2413.5,2.81048]
[1750449083625,0.82857,2413.6,2413.5,2.14008]
[1750449084316,0.82867,2413.4,2413.3,0.82864]
[1750449085910,0.82871,2413.2,2413.1,1.3023]
[1750449086113,2.07169,2413.3,2412.7,3.2078]
[1750449086314,1.3453,2413.1,2412.4,2.7128]
[1750449086524,0.82895,2412.5,2412.4,3.54175]
[1750449086733,0.82895,2412.5,2412.4,2.18965]
[1750449087028,0.82898,2412.4,2412.3,4.0368]
[1750449087228,0.82898,2412.4,2412.3,3.2078]
[1750449087622,0.82898,2412.4,2412.1,1.3607]
[1750449087927,2.0723,2412.6,2412.1,1.3607]
[1750449087928,0.82908,2412.2,2412.1,0.82907]
[1750449088116,0.82908,2412.1,2412.0,1.50051]
[1750449088323,0.82908,2412.1,2412.0,2.86121]
[1750449088823,2.74228,2412.4,2411.9,3.2078]
[1750449088824,0.82912,2412.0,2411.9,3.2078]
[1750449089028,0.82922,2411.8,2411.7,0.82922]
[1750449089223,0.82922,2411.7,2411.6,2.18994]
[1750449089422,0.82921,2411.8,2411.7,0.82921]
[1750449090031,2.07263,2412.2,2411.6,1.3607]
[1750449090327,0.82907,2412.2,2412.1,0.82905]
[1750449090729,3.2078,2412.3,2412.2,0.82905]
[1750449090929,3.2078,2412.3,2412.1,0.82906]
[1750449090930,0.82907,2412.2,2412.1,0.82906]
[1750449091531,0.82906,2412.2,2412.1,0.82905]
[1750449091734,4.03683,2412.3,2412.2,0.82905]
[1750449092031,0.82907,2412.2,2412.1,0.82906]
[1750449092331,0.82908,2412.1,2412.0,2.24049]
[1750449093130,0.82918,2411.9,2411.8,0.82915]
[1750449093328,0.82915,2411.9,2411.8,2.15168]
[1750449094215,0.82915,2411.9,2411.7,3.8652]
[1750449094419,0.82915,2411.9,2411.8,0.82919]
[1750449094619,2.07265,2412.2,2411.7,3.8652]
[1750449094620,0.82919,2411.8,2411.7,0.6574]
[1750449094825,0.82919,2411.8,2411.1,0.25985808]
[1750449094826,0.82939,2411.3,2411.2,0.82936]
[1750449095629,0.82941,2411.2,2411.1,0.8294]
[1750449095823,0.82938,2411.3,2411.2,0.82936]
[1750449096022,3.45646,2411.6,2411.0,1.3225]
[1750449096023,1.3833,2411.6,2411.0,6.60395]
[1750449096225,1.3509,2411.7,2411.6,0.82926]
[1750449096424,0.82917,2411.9,2411.8,0.82915]
[1750449097024,12.35613,2412.1,2412.0,0.82912]
[1750449097231,3.2078,2412.1,2412.0,0.82912]
[1750449098028,0.82903,2412.3,2412.2,0.82905]
[1750449098230,0.829,2412.4,2412.3,0.82898]
[1750449098734,0.82907,2412.2,2412.1,0.82905]
[1750449099230,0.82911,2412.1,2412.0,0.82909]
[1750449099424,0.82906,2412.2,2412.1,0.82904]
[1750449099834,4.542,2412.5,2412.0,2.07279]
[1750449100135,0.82904,2412.3,2412.2,0.82902]
[1750449100328,0.82905,2412.2,2412.1,2.11838]
[1750449101234,0.829,2412.4,2412.3,0.82899]
[1750449102135,5.37096,2412.5,2412.4,0.82898]
[1750449102734,0.82904,2412.3,2412.2,0.82901]
[1750449102940,0.82905,2412.2,2412.1,2.11836]
[1750449103535,0.82903,2412.3,2412.2,0.829]
[1750449103839,4.70936,2412.5,2412.4,0.82898]
[1750449104132,3.2078,2412.5,2412.4,0.82898]
[1750449104729,4.03675,2412.5,2412.4,0.82898]
[1750449105334,0.82888,2412.8,2412.7,0.82884]
[1750449105538,0.82892,2412.7,2412.6,0.82888]
[1750449106137,0.82888,2412.8,2412.7,0.82884]
[1750449106440,1.3041,2412.9,2412.3,4.615]
[1750449106441,1.47942,2412.9,2412.8,0.82884]
[1750449107237,0.82888,2412.8,2412.7,0.82885]
[1750449107934,0.6506,2412.9,2412.5,10.97875]
[1750449108136,0.6506,2412.9,2412.8,0.82884]
[1750449108335,1.47943,2412.9,2412.8,0.82884]
[1750449108642,0.82891,2412.6,2412.5,2.75532]
[1750449109044,0.82891,2412.6,2412.5,2.11302]
[1750449109545,0.82891,2412.6,2412.5,0.82892]
[1750449109737,0.89824781,2412.6,2412.5,0.82892]
[1750449110340,0.06933781,2412.6,2412.5,0.82892]
[1750449111754,0.89824781,2412.6,2412.5,0.82892]
[1750449112045,0.06933781,2412.6,2412.5,0.82892]
[1750449112754,0.06933781,2412.6,2412.5,2.24362]
[1750449113452,0.06933781,2412.6,2412.5,2.91242]
[1750449116352,0.89824781,2412.6,2412.5,2.91242]
[1750449116554,0.06933781,2412.6,2412.5,2.91242]
[1750449116754,0.89824781,2412.6,2412.5,2.91242]
[1750449116956,0.89824781,2412.6,2412.5,0.82892]
[1750449117153,0.89824781,2412.6,2412.3,3.2078]
[1750449117154,0.82898,2412.4,2412.3,3.2078]
[1750449117349,0.82898,2412.4,2412.3,4.03681]
[1750449118156,2.84512781,2412.6,2412.3,3.2078]
[1750449118157,0.77283781,2412.6,2412.3,3.2078]
[1750449118350,1.60176781,2412.6,2412.5,0.82895]
[1750449118546,0.06933781,2412.6,2412.5,0.82895]
[1750449119049,0.06933781,2412.6,2412.5,1.47185]
[1750449120649,0.89824781,2412.6,2412.5,1.47185]
[1750449120847,0.06933781,2412.6,2412.5,1.47185]
[1750449123159,0.89824781,2412.6,2412.5,1.47185]
[1750449123352,0.06933781,2412.6,2412.5,1.47185]
[1750449125059,0.06933781,2412.6,2412.5,6.47185]
[1750449125757,0.06933781,2412.6,2412.5,1.47185]
[1750449126160,0.06933781,2412.6,2412.5,34.79085]
[1750449126854,0.89824781,2412.6,2412.5,34.79085]
[1750449127252,0.89824781,2412.6,2412.5,27.19095]
[1750449127558,0.82905,2412.2,2412.1,0.6472]
[1750449127759,0.82908,2412.1,2412.0,4.03692]
[1750449128353,1.47747,2412.2,2412.1,0.82908]
[1750449128546,0.82908,2412.1,2412.0,4.03689]
[1750449129162,0.82908,2412.1,2412.0,3.2078]
[1750449129347,0.82915,2411.9,2411.8,0.82917]
[1750449129547,0.6484,2412.2,2411.7,5.28084]
[1750449129859,0.82913,2412.0,2411.9,0.82912]
[1750449130159,0.82913,2412.0,2411.8,1.3203]
[1750449130160,1.47748,2412.2,2412.1,0.82908]
[1750449131153,0.8291,2412.1,2412.0,0.82909]
[1750449131752,0.82914,2412.0,2411.9,0.82913]
[1750449132262,0.82909,2412.1,2412.0,0.82908]
[1750449133659,0.82915,2412.0,2411.9,0.82913]
[1750449133863,0.82915,2411.9,2411.8,2.14946]
[1750449134158,0.6484,2412.2,2411.7,5.28083]
[1750449134356,0.82911,2412.1,2412.0,0.82908]
[1750449134656,21.61456972,2412.1,2410.9,13.4319936]
[1750449134854,0.82938,2411.3,2411.1,0.8294]
[1750449135256,0.82938,2411.3,2411.2,0.82939]
[1750449135449,0.6789,2411.5,2411.1,0.8294]
[1750449135450,0.82939,2411.2,2411.1,0.8294]
[1750449135853,0.6789,2411.5,2411.0,1.4139]
[1750449136064,0.82935,2411.4,2411.3,0.82935]
[1750449136356,0.82935,2411.4,2411.0,1.4139]
[1750449136357,2.07332,2411.4,2411.0,1.4139]
[1750449136558,0.82946,2411.1,2411.0,0.82945]
[1750449137562,0.82946,2411.0,2410.9,5.35099]
[1750449137764,0.82945,2411.1,2411.0,0.82943]
[1750449138159,0.82946,2411.0,2410.9,6.69408]
[1750449138359,0.82945,2411.1,2411.0,0.82942]
[1750449138659,0.82945,2411.1,2411.0,0.82943]
[1750449140157,0.6789,2411.5,2410.9,7.93833]
[1750449140457,3.2078,2411.8,2410.9,7.93833]
[1750449140458,2.07256,2412.3,2411.5,2.07322]
[1750449140660,0.82909,2412.2,2412.1,0.82906]
[1750449141768,0.6705,2412.4,2411.9,1.3078]
[1750449141769,0.82912,2412.0,2411.9,2.13694]
[1750449142859,0.6671,2412.2,2411.9,1.3078]
[1750449143164,1.49616,2412.2,2412.1,0.82908]
[1750449143359,0.6671,2412.2,2412.1,0.82908]
[1750449143562,0.82905,2412.2,2412.1,0.82908]
[1750449144169,0.82911,2412.1,2412.0,0.82909]
[1750449145067,0.82912,2412.0,2411.9,2.13693]
[1750449145261,0.8291,2412.1,2412.0,0.82909]
[1750449146066,0.82907,2412.2,2412.1,0.82905]
[1750449146259,0.82911,2412.1,2412.0,0.82909]
[1750449146453,0.82912,2412.0,2411.9,2.13692]
[1750449146653,0.82919,2411.8,2411.7,3.2078]
[1750449146963,0.82919,2411.8,2411.7,4.03699]
[1750449147360,0.82919,2411.8,2411.7,3.2078]
[1750449147560,0.82921,2411.8,2411.6,0.6879]
[1750449147865,0.82921,2411.8,2411.7,0.8292]
[1750449149164,0.82922,2411.7,2411.6,0.82923]
[1750449149364,0.8292,2411.8,2411.7,0.82917]
[1750449150064,0.82925,2411.7,2411.6,0.82923]
[1750449150271,0.82925,2411.7,2411.4,5.9321]
[1750449150272,0.82936,2411.4,2411.3,0.82934]
[1750449150563,2.07306,2411.7,2411.1,6.68467]
[1750449150767,0.82935,2411.4,2411.3,0.82934]
[1750449152463,3.8522,2411.8,2411.2,2.07347]
[1750449152767,0.82927,2411.7,2411.6,0.82923]
[1750449152959,0.82931,2411.5,2411.4,0.82929]
[1750449153269,0.82931,2411.5,2411.4,2.23259]
[1750449153568,0.82931,2411.5,2411.4,1.4033]
[1750449154067,2.07307,2411.7,2411.1,4.69992]
[1750449154068,0.82939,2411.2,2411.1,4.69992]
[1750449154261,0.82939,2411.2,2411.1,4.03722]
[1750449154459,0.82939,2411.2,2411.1,4.03723]
[1750449154861,0.82938,2411.3,2411.2,0.82935]
[1750449155867,0.82939,2411.2,2411.1,5.43521]
[1750449156268,0.82938,2411.3,2411.2,0.82936]
[1750449156472,0.82933,2411.5,2411.4,0.8293]
[1750449158171,0.82929,2411.5,2411.4,0.8293]
[1750449158870,0.6808,2411.9,2411.6,2.0731]
[1750449159070,0.82912,2412.1,2412.0,0.8291]
[1750449159371,0.82893,2412.6,2412.0,5.2806]
[1750449159569,0.82895,2412.5,2412.4,0.82896]
[1750449159865,3.2078,2412.7,2412.2,19.3378136]
[1750449160073,0.82897,2412.5,2412.4,0.82896]
[1750449160265,2.0723,2412.6,2412.1,0.6751]
[1750449160470,0.82905,2412.2,2412.1,1.50417]
[1750449161074,2.07237,2412.5,2412.0,3.2078]
[1750449161075,0.82908,2412.1,2412.0,3.2078]
[1750449161374,0.82907,2412.2,2412.1,0.82906]
[1750449161572,0.82904,2412.3,2412.2,0.82903]
[1750449161767,10.48113,2412.6,2412.0,4.5475]
[1750449161972,0.82907,2412.2,2412.1,0.82908]
[1750449162173,0.82908,2412.1,2412.0,3.2078]
[1750449163672,0.82908,2412.1,2412.0,4.03692]
[1750449165183,0.82908,2412.1,2412.0,4.03689]
[1750449165478,3.2078,2412.7,2412.0,8.2078]
[1750449165684,3.2078,2413.4,2412.7,2.0722]
[1750449165871,3.2078,2413.4,2413.3,0.82867]
[1750449166382,4.03644,2413.4,2413.3,0.82867]
[1750449166782,0.8287,2413.3,2413.2,0.82869]
[1750449167177,4.03646,2413.4,2413.3,0.82867]
[1750449168283,5.27947,2413.4,2413.0,3.2078]
[1750449168474,0.82879,2413.0,2412.9,0.82878]
[1750449168676,0.82881,2412.9,2412.7,3.2078]
[1750449168881,0.82884,2412.8,2412.7,3.2078]
[1750449169592,0.6837,2412.9,2412.8,0.82884]
[1750449169884,1.51251,2412.9,2412.8,0.82884]
[1750449171381,0.6837,2412.9,2412.8,0.82884]
[1750449172483,3.2078,2413.4,2412.9,2.072]
[1750449172687,0.82871,2413.3,2413.2,0.82868]
[1750449173184,3.2078,2413.4,2413.3,0.82867]
[1750449173886,4.03644,2413.4,2413.3,0.82867]
[1750449174183,4.03644,2413.4,2413.0,12.31873]
[1750449174184,0.82871,2413.3,2413.2,0.82868]
[1750449174485,2.71825,2413.5,2413.0,4.5194]
[1750449174688,0.82874,2413.1,2413.0,4.03655]
[1750449175581,0.82881,2413.0,2412.9,0.82878]
[1750449175982,1.3677,2413.3,2412.8,0.6889]
[1750449176285,0.82876,2413.1,2413.0,0.82873]
[1750449176689,0.82873,2413.2,2413.1,0.8287]